[Event "44th Chess Olympiad Women 2022"]
[Site "Chennai"]
[Date "2022.08.06"]
[Round "8.15"]
[White "Medic, Mirjana"]
[Black "Vantika Agrawal"]
[Result "0-1"]
[WhiteElo "2194"]
[BlackElo "2371"]
[Annotator "TA"]
[PlyCount "74"]
[EventDate "2022.??.??"]
[TimeControl "60"]

{[%evp 20,74,0,8,14,-74,-73,-147,0,-172,-4,-10,-9,-7,-8,0,3,-13,-6,-27,0,-56,
-55,-74,-72,-77,-64,-71,-81,-121,-120,-323,-324,-352,-213,-211,-211,-444,-229,
-775,-767,-770,-763,-759,-757,-723,-736,-850,-812,-1541,-1447,-3070,-2420,
-29989,-29990,-29989,-29990]} 1. d4 {[%emt 0:00:02]} Nf6 {[%emt 0:00:18]} 2. c4
{[%emt 0:00:17]} g6 {[%emt 0:00:08]} 3. Nf3 {[%emt 0:00:07]} Bg7 {[%emt 0:00:
00]} 4. g3 {[%emt 0:00:07]} O-O {[%emt 0:00:04]} 5. Bg2 {[%emt 0:00:05]} d6 {
[%emt 0:00:03]} 6. O-O {[%emt 0:00:07]} Nc6 {[%emt 0:00:11]} 7. Nc3 {[%emt 0:
00:00]} a6 {[%emt 0:00:22][%cal Ya7a6,Ya6b5,Yb5b4]} 8. h3 {[%emt 0:00:00]} Rb8
{[%emt 0:00:25]} 9. e4 {[%emt 0:01:14]} b5 {[%emt 0:04:37]} 10. cxb5 {[%emt 0:
00:41] 10.cxb5 has become a bit dusty these days.} axb5 {[%emt 0:00:06]} 11.
Re1 {[%emt 0:00:08]} e6 {[%emt 0:05:09] E63: King's Indian: Fianchetto: Panno
Variation with 7...a6.} 12. Be3 {[%emt 0:12:23]} (12. Bd2 $11) 12... b4 $17 {
[%emt 0:03:10]} 13. Na4 {[%emt 0:03:13]} (13. e5 $142 dxe5 14. Nxe5 Nxe5 15.
dxe5 bxc3 16. exf6 Bxf6 17. bxc3) 13... Bb7 {[%emt 0:06:05] [#]} (13... Nxe4
$17 {White must now prevent ...Ne7.} 14. d5 (14. Qc2 $2 Bb7 $17) 14... Ne7 15.
dxe6 fxe6) 14. Qc2 $146 {[%emt 0:06:47] [#]} (14. Nh2 $11 {and White stays
safe.}) ({Predecessor:} 14. Bg5 h6 15. Bd2 Re8 16. Rc1 e5 17. dxe5 Nxe5 18.
Nxe5 Rxe5 19. Qc2 Qe8 20. f3 {0-1 (46) Portisch,L-Adorjan,A Budapest 1975})
14... Ne7 $2 {[%emt 0:18:53]} (14... Nxe4 $1 $19 {Hoping for ...Ne7.} 15. Nd2 (
15. Qxe4 $2 Nxd4 16. Nxd4 Bxe4 $19) 15... Nxd2 16. Qxd2 Ne7 17. Bxb7 Rxb7) 15.
Nd2 $11 {[%emt 0:03:56]} Qd7 {[%emt 0:00:52]} 16. b3 {[%emt 0:02:25]} Rfc8 {
[%emt 0:05:41]} 17. Rac1 {[%emt 0:04:43]} Qd8 {[%emt 0:06:22]} 18. Qb1 {
[%emt 0:09:04]} Nd7 {[%emt 0:01:52]} 19. f4 {[%emt 0:06:16]} f5 {[%emt 0:16:11]
} 20. e5 {[%emt 0:04:19]} (20. Bf2 $11) 20... Bxg2 $15 {[%emt 0:03:20]} 21.
Kxg2 {[%emt 0:00:03]} Nd5 {[%emt 0:00:45][%cal Yc7c5]} 22. Bf2 {[%emt 0:01:00]}
dxe5 {[%emt 0:01:05]} 23. dxe5 {[%emt 0:03:27]} g5 {[%emt 0:00:52]} 24. fxg5 {
[%emt 0:02:09]} Nxe5 {[%emt 0:02:00]} 25. Re2 $2 {[%emt 0:18:26] This move
loses the game for White.} ({Don't blunder} 25. Nc4 $2 Nc3 26. Rxc3 (26. Nxc3
$2 Nxc4 27. Rxe6 bxc3 $19) 26... Qd5+ 27. Kg1 bxc3 28. Nxe5 Bxe5 $19) (25. Nf3
$17 {was worth a try.} Nxf3 26. Kxf3) 25... Qxg5 $19 {[%emt 0:04:12]} 26. Kh2 {
[%emt 0:02:28]} Nc3 {[%emt 0:05:58]} 27. Nxc3 {[%emt 0:01:02]} bxc3 {[%emt 0:
00:00]} 28. Nf1 {[%emt 0:00:24]} (28. Rxc3 {is the only way for White.} Ng4+
29. hxg4 Bxc3 30. Nf3 Qxg4 31. Qd3) 28... Rd8 {[%emt 0:01:04]} (28... Qh5 $142
29. Rcc2 Nf3+ 30. Kg2 Ng5) 29. Kg2 $2 {[%emt 0:01:58]} (29. Rxc3 Ng4+ 30. hxg4
Bxc3 31. Rxe6 Qxg4 32. Qc2) 29... Nd3 {[%emt 0:01:22]} 30. Rcc2 {[%emt 0:00:25]
} Nf4+ {[%emt 0:01:50]} 31. Kh2 {[%emt 0:00:20]} Nxe2 {[%emt 0:00:06]} 32. Rxe2
{[%emt 0:00:02]} Qh5 {[%emt 0:00:29]} 33. Qc2 {[%emt 0:01:36]} Qf3 {[%emt 0:00:
00] Threatens to win with ...Rd7.} 34. Ne3 {[%emt 0:02:12]} Rd7 {[%emt 0:00:59]
} 35. Nc4 {[%emt 0:01:14]} Rbd8 {[%emt 0:00:32][%cal Yd7d2] ( -> ...Rd2!)} 36.
Bg1 {[%emt 0:02:16] [#]} Rd2 $1 {[%emt 0:00:39]} 37. Rxd2 {[%emt 0:00:00]} (37.
Qxd2 cxd2) 37... cxd2 {[%emt 0:00:05] Weighted Error Value: White=1.30/Black=0.
27 (precise)} 0-1

[Event "44th Chess Olympiad Women 2022"]
[Site "Chennai"]
[Date "2022.08.06"]
[Round "8.15"]
[White "Padmini, Rout"]
[Black "Radikovic, Anamarija"]
[Result "1-0"]
[WhiteElo "2374"]
[BlackElo "2099"]
[Annotator "TA"]
[PlyCount "55"]
[EventDate "2022.??.??"]
[TimeControl "60"]

{[%evp 25,55,13,22,12,45,47,45,37,74,74,90,77,106,99,91,94,90,85,96,89,89,89,
89,89,98,77,234,251,229,192,342,157]} 1. e4 {[%emt 0:00:04]} c5 {[%emt 0:00:04]
} 2. Nf3 {[%emt 0:00:11]} d6 {[%emt 0:00:06]} 3. d4 {[%emt 0:00:47]} cxd4 {
[%emt 0:00:05]} 4. Nxd4 {[%emt 0:00:04]} Nf6 {[%emt 0:00:07]} 5. Nc3 {[%emt 0:
00:00]} a6 {[%emt 0:00:05]} 6. Be2 {[%emt 0:00:24]} e5 {[%emt 0:00:06]} 7. Nb3
{[%emt 0:00:08]} Be7 {[%emt 0:00:08]} 8. Be3 {[%emt 0:00:50]} Be6 {[%emt 0:00:
00]} 9. Nd5 {[%emt 0:01:40]} Nxd5 {[%emt 0:04:58]} 10. exd5 {[%emt 0:00:08]}
Bf5 {[%emt 0:00:10]} 11. Qd2 {[%emt 0:00:51]} Nd7 {[%emt 0:03:26]} 12. O-O {
[%emt 0:01:08]} O-O {[%emt 0:10:53]} 13. Na5 {[%emt 0:03:33]} Qc7 {[%emt 0:00:
00]} 14. c4 {[%emt 0:02:37] B92: Sicilian Najdorf: 6 Be2.} Bg6 {[%emt 0:00:48]}
15. b4 {[%emt 0:00:31]} f5 {[%emt 0:04:53] [#] And now ...f4 would win.} 16. f4
{[%emt 0:11:30] White is slightly better.} b6 {[%emt 0:07:31]} 17. Nc6 {
[%emt 0:01:18]} Bf6 {[%emt 0:00:05]} 18. Rac1 {[%emt 0:00:39] 0x0.
0002d9b67b31dp-1022s more active pieces.} Rfe8 {[%emt 0:23:11]} 19. Bd3 {
[%emt 0:03:46]} e4 {[%emt 0:05:00]} 20. Be2 {[%emt 0:03:00] [#]} a5 $146 {
[%emt 0:01:34]} ({Predecessor:} 20... Bf7 21. Nd4 Bxd4 22. Bxd4 Qd8 23. Rc3 Nf6
24. Rg3 Kf8 25. Qe3 Rb8 26. Rg5 g6 {1-0 (35) Hoolt,S (2393)-Doluhanova,E (2304)
Stary Smokovec 2018}) 21. a3 {[%emt 0:01:02][%cal Ya2a3,Ya3b4]} axb4 {[%emt 0:
00:43]} 22. axb4 {[%emt 0:00:06]} Ra3 {[%emt 0:00:57]} 23. Nd4 {[%emt 0:01:17]}
Bxd4 {[%emt 0:04:58]} 24. Bxd4 {[%emt 0:02:41]} Rea8 {[%emt 0:00:00]} 25. Bb2 {
[%emt 0:01:16] This bishop pair is nice.} Rb3 {[%emt 0:02:04] [#]} (25... Ra2
$16) 26. Ra1 $18 {[%emt 0:04:24]} Rc8 {[%emt 0:03:27]} (26... Rxa1 $2 27. Rxa1
h6 28. Bd4 $18) 27. Bd4 {[%emt 0:05:00] Hoping for Rfc1.} Qb7 {[%emt 0:04:14]}
(27... Nf6 {was necessary.}) 28. Qa2 {[%emt 0:10:55] White took control after
the opening. Weighted Error Value: White=0.01 (flawless) / Black=0.31} (28. Ra4
$18 Qc7 29. Qa2) 1-0

[Event "44th Chess Olympiad Women 2022"]
[Site "Chennai"]
[Date "2022.08.06"]
[Round "8.16"]
[White "Alboredo, Julia"]
[Black "Sebag, Marie"]
[Result "1/2-1/2"]
[WhiteElo "2264"]
[BlackElo "2447"]
[Annotator "TA"]
[PlyCount "84"]
[EventDate "2022.??.??"]
[TimeControl "60"]

{[%evp 17,84,14,0,0,15,18,30,10,44,49,48,47,66,60,66,65,64,64,77,56,64,64,64,
78,81,71,197,66,72,70,79,71,95,71,94,0,74,-10,15,0,0,0,9,-179,-55,-83,-76,-89,
0,-123,-134,-122,-123,-147,-88,-358,1557,1556,29989,29990,29990,29991,29991,0,
0,0,0,0,0]} 1. e4 {[%emt 0:00:05]} c5 {[%emt 0:00:22]} 2. Nf3 {[%emt 0:00:10]}
d6 {[%emt 0:00:04]} 3. d4 {[%emt 0:00:11]} cxd4 {[%emt 0:00:04]} 4. Nxd4 {
[%emt 0:00:09]} Nf6 {[%emt 0:00:05]} 5. Nc3 {[%emt 0:00:18]} a6 {[%emt 0:00:06]
} 6. Be2 {[%emt 0:00:24]} e5 {[%emt 0:05:01]} 7. Nb3 {[%emt 0:00:07]} Be7 {
[%emt 0:00:08]} 8. O-O {[%emt 0:00:15]} O-O {[%emt 0:00:17]} 9. Qd3 {[%emt 0:
00:00]} Be6 {[%emt 0:15:53]} 10. Bd2 {[%emt 0:00:38] B92: Sicilian Najdorf: 6
Be2.} Nbd7 {[%emt 0:19:31]} (10... Nc6 $5 {[%cal Rc6b4]}) 11. Nd5 {[%emt 0:00:
00]} Bxd5 {[%emt 0:00:35]} 12. exd5 {[%emt 0:00:09] White has an edge.} Nc5 {
[%emt 0:00:52]} 13. Nxc5 {[%emt 0:03:04]} dxc5 {[%emt 0:00:05]} 14. c4 {
[%emt 0:00:11]} Qc7 {[%emt 0:12:56]} 15. Bc3 {[%emt 0:16:27]} Bd6 {[%emt 0:00:
00] [#]} 16. Qh3 $146 {[%emt 0:11:08][%cal Yf2f4]} ({Predecessor:} 16. Qf5 Ne8
17. Bd3 g6 18. Qh3 f5 19. f3 Nf6 20. Bc2 Rae8 21. Rae1 b5 22. b3 {½-½ (41)
Mekhane,A (2318)-Soham,D (2330) Clichy 2022}) 16... Nd7 {[%emt 0:11:32]} 17.
Bd3 {[%emt 0:08:12][%csl Gd3][%cal Rh3h7]} g6 {[%emt 0:00:16]} 18. Qh6 {
[%emt 0:14:47][%cal Yf2f4]} Rfe8 {[%emt 0:03:20][%cal Yb7b5]} 19. Rae1 {
[%emt 0:03:08]} (19. f3 {looks sharper.} b5 20. b3 Bf8 21. Qg5) 19... Bf8 {
[%emt 0:03:17]} 20. Qd2 {[%emt 0:00:26] White is more active.} f5 {[%emt 0:00:
00]} 21. f3 {[%emt 0:00:18] Inhibits e4.} Bd6 {[%emt 0:06:22] [#]} (21... Bg7
$16) 22. g3 {[%emt 0:06:13]} (22. Bxf5 $1 $18 {Hoping for Be6+.} gxf5 23. Qg5+
Kh8 24. f4) 22... b5 $14 {[%emt 0:03:51] Strongly threatening ... b4.} 23. b3 {
[%emt 0:03:04]} ({Don't play} 23. cxb5 $6 c4 24. Bc2 axb5 $15) 23... b4 {
[%emt 0:00:21]} 24. Ba1 {[%emt 0:00:18]} a5 {[%emt 0:03:54]} 25. Re2 {[%emt 0:
03:52][%cal Yd3f5]} a4 {[%emt 0:00:19]} 26. Rfe1 {[%emt 0:05:40]} (26. bxa4 $16
{[%cal Yd3f5]} Rxa4 27. Bxf5 gxf5 28. Qg5+ Kh8 29. f4) 26... Rf8 {[%emt 0:00:
54]} (26... e4 $11 {remains equal.}) 27. Kg2 {[%emt 0:14:54]} (27. Bc2 $16)
27... a3 {[%emt 0:00:20]} 28. Qh6 {[%emt 0:03:56][%cal Yf3f4]} Rf7 {[%emt 0:00:
37]} 29. h4 {[%emt 0:00:41]} e4 {[%emt 0:04:43]} 30. Bxe4 $2 {[%emt 0:00:54]}
Bf8 {[%emt 0:03:36]} (30... fxe4 $19 31. f4 Bf8) 31. Qd2 {[%emt 0:02:30][%cal
Yd5d6]} fxe4 {[%emt 0:00:13]} 32. Rxe4 {[%emt 0:00:01][%cal Yh4h5]} Bg7 {
[%emt 0:00:53]} (32... Nf6 $17 33. Re6 Nh5) 33. d6 {[%emt 0:00:00]} (33. Bxg7
$11 {was the only way to keep the balance.} Kxg7 34. Re7) 33... Qc6 $17 {
[%emt 0:00:19] White must now prevent ...Bxa1.} 34. Bxg7 {[%emt 0:01:14]} Kxg7
{[%emt 0:00:04]} 35. h5 {[%emt 0:00:17] [#] Threatens to win with hxg6.} Raf8 {
[%emt 0:00:32]} ({Of course not} 35... gxh5 $6 36. Qg5+ Kf8 37. Rd1 $14) ({
Better is} 35... Nf8 $1 {And now ...Rd8 would win.} 36. Rf4 Raa7 37. h6+ Kg8)
36. hxg6 $2 {[%emt 0:01:26]} (36. h6+ $17 Kg8 37. Rf4) 36... hxg6 $4 {[%emt 0:
00:05]} (36... Rxf3 $19 37. Kh3 hxg6) 37. Rh1 $18 {[%emt 0:00:05]} Rh8 {
[%emt 0:02:33]} 38. Rxh8 {[%emt 0:00:27] Remove Defender, Deflection} Kxh8 {
[%emt 0:00:05]} 39. Qh6+ {[%emt 0:00:00]} Kg8 {[%emt 0:00:17]} 40. Re8+ $2 {
[%emt 0:01:33]} (40. Qxg6+ {mates} Rg7 41. Qe8+ Nf8 42. Qxc6 Rh7 43. Qd5+ Kh8
44. Re7 Rxe7 45. dxe7 Nh7 46. e8=Q+ Nf8 47. Qxf8+ Kh7 48. Qh5#) 40... Nf8 $1
$11 {[%emt 0:00:47] The position is equal.} 41. Rxf8+ {[%emt 0:31:31] Remove
Defender} Rxf8 {[%emt 0:00:00]} 42. Qxg6+ {[%emt 0:00:07]} Kh8 {[%emt 0:00:03]
Weighted Error Value: White=0.65/Black=0.47} 1/2-1/2

[Event "44th Chess Olympiad Women 2022"]
[Site "Chennai"]
[Date "2022.08.06"]
[Round "8.16"]
[White "Guichard, Pauline"]
[Black "Librelato, Kathie Goulart"]
[Result "1/2-1/2"]
[WhiteElo "2379"]
[BlackElo "2255"]
[Annotator "TA"]
[PlyCount "120"]
[EventDate "2022.??.??"]
[TimeControl "60"]

{[%evp 14,120,10,10,1,0,0,0,9,0,7,6,14,0,10,5,15,0,0,0,33,42,30,42,26,12,64,
-30,-35,-52,8,-48,-58,-91,-81,-91,-100,-82,-100,-104,-82,-31,-93,-92,-95,-82,
-84,-94,-62,-55,0,0,0,0,0,0,0,0,0,0,0,-181,-142,-288,-184,-203,-191,-245,0,-23,
0,-146,-130,-128,-41,-42,-8,-8,-8,-8,-8,-8,0,0,-2,-8,14,8,18,0,0,0,0,0,0,0,0,0,
0,0,0,0,0,0,0,0,0,0,0]} 1. d4 {[%emt 0:00:03]} d5 {[%emt 0:00:06]} 2. c4 {
[%emt 0:00:07]} e6 {[%emt 0:00:05]} 3. Nc3 {[%emt 0:00:26]} c6 {[%emt 0:00:07]}
4. e3 {[%emt 0:00:04]} Nf6 {[%emt 0:00:06]} 5. Nf3 {[%emt 0:00:11]} Nbd7 {
[%emt 0:00:10]} 6. Be2 {[%emt 0:00:13]} Bd6 {[%emt 0:00:08]} 7. O-O {[%emt 0:
00:00]} O-O {[%emt 0:00:06]} 8. b3 {[%emt 0:00:05]} b6 {[%emt 0:00:13] D45:
Semi-Slav: 5 e3.} 9. Bb2 {[%emt 0:00:08]} Bb7 {[%emt 0:00:06]} 10. Bd3 {
[%emt 0:00:04]} Qe7 {[%emt 0:01:11]} 11. Re1 {[%emt 0:00:29]} c5 {[%emt 0:00:
00]} 12. cxd5 {[%emt 0:04:04]} exd5 {[%emt 0:00:08] [#]} 13. g3 $146 {[%emt 0:
00:00]} (13. Rc1 {seems wilder.} Ne4 14. Nb5 Bb8 15. g3) ({Predecessor:} 13.
Nb5 Bb8 14. Bf5 g6 15. Bh3 Ne4 16. dxc5 bxc5 17. Nc3 Ndf6 18. Qc2 Bd6 19. Rac1
{1-0 (99) Gumularz,S (2515)-Mendonca,L (2557) Paleochora 2021}) 13... Rac8 {
[%emt 0:05:33]} 14. Bf1 {[%emt 0:07:54][%cal Yd3f1,Yf1h3,Yh3f5]} Rfd8 {[%emt 0:
15:19]} 15. a4 {[%emt 0:09:43]} Ne4 {[%emt 0:13:20]} 16. dxc5 {[%emt 0:11:53]}
Ndxc5 {[%emt 0:07:42]} 17. Nb5 {[%emt 0:04:27]} (17. Nxd5 $2 Bxd5 18. Qxd5 Bxg3
$1 19. Qxd8+ Qxd8 $19) 17... Bb8 {[%emt 0:00:00]} 18. Nbd4 {[%emt 0:02:22]} g6
{[%emt 0:07:31] Against Nf5} 19. Bh3 {[%emt 0:07:16]} f5 {[%emt 0:00:21]} ({
Black should try} 19... Nd7 $11) 20. Nxf5 {[%emt 0:25:57]} gxf5 $11 {[%emt 0:
05:51]} 21. Bxf5 {[%emt 0:00:14]} Rc6 {[%emt 0:03:04]} (21... Rf8 $15 22. Bxc8
(22. Qd4 Rc6 $17) 22... Bxc8) 22. Nd4 {[%emt 0:06:48]} ({But not} 22. Qd4 $2
Rf6 23. Bxe4 Nxe4 $19) (22. b4 $11) 22... Rh6 $1 $15 {[%emt 0:02:52][%cal
Ye4f2]} 23. b4 {[%emt 0:00:38] [#]} Nxf2 {[%emt 0:16:38]} 24. Qf3 {[%emt 0:07:
29]} (24. Qe2 Nce4) 24... Ncd3 {[%emt 0:00:00]} 25. Bxd3 {[%emt 0:07:27]} Nxd3
{[%emt 0:00:19]} 26. Nf5 {[%emt 0:00:32][%csl Ye7,Yh6][%cal Rf5e7]} Qg5 {
[%emt 0:00:21]} 27. Nxh6+ {[%emt 0:00:36]} Qxh6 {[%emt 0:00:05]} 28. Qg4+ {
[%emt 0:00:34]} Qg6 {[%emt 0:00:38]} 29. Qh4 {[%emt 0:00:08]} Re8 {[%emt 0:03:
17]} 30. Rf1 {[%emt 0:00:50]} Nxb2 {[%emt 0:00:00]} 31. Rf6 {[%emt 0:00:15]}
Qe4 {[%emt 0:01:10]} (31... Rxe3 32. Rxg6+ hxg6 33. Qd8+ Kh7 34. Rf1) ({
Better is} 31... Qg7 $15 32. Raf1 Be5) 32. Qg5+ $11 {[%emt 0:00:30]} Kh8 {
[%emt 0:00:05] Hoping for ...d4.} 33. Raf1 {[%emt 0:00:03] Chess con chili.}
Qxe3+ {[%emt 0:00:53]} 34. Qxe3 {[%emt 0:00:04]} Rxe3 {[%emt 0:00:05]} 35. Rf8+
{[%emt 0:00:04]} Kg7 {[%emt 0:00:05][%cal Ye3e7] ... Re7! is the strong threat.
} 36. R1f7+ {[%emt 0:02:02]} Kg6 {[%emt 0:00:05][%cal Yd5d4]} 37. Rxb7 $2 {
[%emt 0:00:28]} (37. Rf6+ $1 $11 Kg5 38. Rf5+ Kg4 39. R5f7) 37... Be5 {[%emt 0:
00:27]} 38. g4 {[%emt 0:00:36]} (38. Rxa7 $17 Nc4 39. Rd7) 38... Nd3 {[%emt 0:
02:32]} (38... Nxa4 39. Rg8+ Kf6 40. Rxa7 $17) 39. Rg8+ {[%emt 0:00:31]} Kf6 {
[%emt 0:00:31]} 40. Rf8+ {[%emt 0:00:29]} (40. Rxh7 {was worth a try.} Re2 41.
Kf1 Rf2+ 42. Kg1) 40... Kg6 $2 {[%emt 0:00:30]} (40... Kg5 $19 41. Rg8+ Kf4 42.
Rxh7 Nxb4) 41. Rg8+ {[%emt 0:05:01]} Kf6 {[%emt 0:12:29] aiming for ...Re1+.} (
41... Kh6 $5 {[%cal Rd3f4]} 42. Rf7 Re1+ 43. Kg2 Nf4+ 44. Kf2 Nd3+ 45. Kg2 Nf4+
46. Kf2 Nd3+ 47. Kg2 $17) 42. Rxh7 {[%emt 0:07:10]} (42. Rf8+ $1 $11 {was the
only way to keep the balance.} Kg5 43. Rg8+ Kf4 44. Rxh7) 42... Re1+ $17 {
[%emt 0:09:49]} ({Not} 42... Nxb4 43. Rh6+ Kf7 44. Ra8 $17) 43. Kg2 {[%emt 0:
00:06] [#]} Re2+ {[%emt 0:00:05]} ({Much worse is} 43... Nxb4 $6 44. Rh6+ Ke7
45. Ra8 $11) (43... Nf4+ $1 $17 44. Kf3 Rf1+ 45. Ke3 d4+ 46. Ke4 Re1+ 47. Kf3
Ne6) 44. Kf3 $15 {[%emt 0:00:45]} Rxh2 {[%emt 0:03:44]} 45. Rf8+ {[%emt 0:08:
18] The position is equal.} Kg6 {[%emt 0:00:54]} 46. Rxh2 {[%emt 0:00:05]} Bxh2
{[%emt 0:00:06]} 47. b5 {[%emt 0:00:24]} Bg1 {[%emt 0:03:36] Strongly
threatening ...Bc5.} 48. Rg8+ {[%emt 0:03:28]} Kf7 {[%emt 0:01:26]} 49. Ra8 {
[%emt 0:00:07]} Nb2 {[%emt 0:00:00]} 50. Rxa7+ {[%emt 0:01:58]} Kg6 {[%emt 0:
01:17]} 51. Rd7 {[%emt 0:00:58]} Nxa4 {[%emt 0:00:32] White must now prevent ..
.Nc3.} 52. Rxd5 {[%emt 0:00:47]} Nc3 {[%emt 0:00:50]} 53. Rf5 {[%emt 0:02:05]}
Bc5 {[%emt 0:01:11]} 54. Rxc5 {[%emt 0:00:29] Remove Defender} bxc5 $11 {
[%emt 0:00:04] Endgame KN-KPP} 55. b6 {[%emt 0:00:02] Threatening mate with b7.
} Nb5 {[%emt 0:00:00]} 56. b7 {[%emt 0:00:38]} Nd4+ {[%emt 0:00:07]} 57. Ke4 {
[%emt 0:00:04]} Nc6 {[%emt 0:00:11]} 58. Kd5 {[%emt 0:00:07][%csl Yc5,Yc6]} Nb8
{[%emt 0:00:00]} 59. Kxc5 {[%emt 0:00:03]} Kg5 {[%emt 0:00:11]} 60. Kb6 {
[%emt 0:00:11]} Kxg4 {[%emt 0:00:14] Weighted Error Value: White=0.21 (precise)
/Black=0.25 (precise)} 1/2-1/2

[Event "44th Chess Olympiad Women 2022"]
[Site "Chennai"]
[Date "2022.08.06"]
[Round "8.16"]
[White "Savina, Anastasia"]
[Black "Bail, Ellen Larissa"]
[Result "1-0"]
[WhiteElo "2377"]
[BlackElo "1892"]
[Annotator "TA"]
[PlyCount "61"]
[EventDate "2022.??.??"]
[TimeControl "60"]

{[%evp 19,61,7,16,18,28,5,33,25,28,21,45,29,29,0,0,0,73,11,0,-22,-9,-35,196,
206,499,500,504,500,493,509,961,927,976,955,946,932,973,952,980,966,933,951,
941,914]} 1. d4 {[%emt 0:00:07]} d5 {[%emt 0:00:08]} 2. c4 {[%emt 0:00:07]} e6
{[%emt 0:00:08]} 3. Nc3 {[%emt 0:00:04]} Nf6 {[%emt 0:00:17]} 4. cxd5 {[%emt 0:
00:00]} exd5 {[%emt 0:00:11]} 5. Bg5 {[%emt 0:00:04]} c6 {[%emt 0:00:21]} 6. e3
{[%emt 0:00:05]} Be7 {[%emt 0:00:23]} 7. Bd3 {[%emt 0:00:22]} Nbd7 {[%emt 0:00:
00][%cal Yb8d7,Yd7b6,Yb6c4]} 8. Qc2 {[%emt 0:00:40]} Nh5 {[%emt 0:00:00]} 9.
Bxe7 {[%emt 0:01:03]} Qxe7 {[%emt 0:00:09]} 10. O-O-O {[%emt 0:02:34]} g6 {
[%emt 0:07:15]} 11. h3 {[%emt 0:04:57] D36: Queen's Gambit Declined: Exchange
Variation: Main line (5 Bg5 c6 6 Qc2).} Nb6 {[%emt 0:01:57]} 12. Kb1 {[%emt 0:
06:12]} Bd7 {[%emt 0:02:18]} 13. Nf3 {[%emt 0:07:43] White is slightly better.}
O-O-O {[%emt 0:14:02]} 14. Na4 {[%emt 0:04:08]} Ng7 {[%emt 0:13:45]} 15. Rc1 {
[%emt 0:21:18]} Bf5 {[%emt 0:08:44] [#]} 16. Rhd1 $146 {[%emt 0:01:34]} ({
Predecessor:} 16. Nc5 Bxd3 17. Qxd3 Nf5 18. Qa3 Kb8 19. Ne5 Rhe8 20. Qb4 f6 21.
Ned3 Nd6 22. a4 {1-0 (32) Colpe,M (2385)-Sajjadi,K (1860) Helsingor 2016})
16... Nc4 {[%emt 0:04:49]} 17. Nc5 {[%emt 0:05:18]} h5 {[%emt 0:15:01]} (17...
Bxd3 $11 18. Rxd3 (18. Nxd3 Kb8 $11) (18. Qxd3 Ne6 $11) 18... Ne6) 18. Qa4 {
[%emt 0:05:05]} (18. Bxf5+ $16 Nxf5 19. Ka1) 18... Kb8 $11 {[%emt 0:04:33]} 19.
Ne5 {[%emt 0:11:54]} Nxe5 {[%emt 0:05:09]} 20. dxe5 {[%emt 0:00:04] Bxf5 is
the strong threat.} Bxd3+ {[%emt 0:07:20] A mistake that costs the game.} (
20... Ne6 $1 $15 {keeps the upper hand.} 21. Bxf5 Nxc5) 21. Rxd3 $18 {[%emt 0:
00:00]} Ne6 $2 {[%emt 0:03:13] [#]} (21... Rc8 {was worth a try.} 22. Rb3 (22.
Ra3 b5 $16) 22... b5) 22. Nxb7 $1 {[%emt 0:07:59] White is clearly winning.}
Qxb7 {[%emt 0:05:12]} 23. Rb3 {[%emt 0:00:08]} Rc8 {[%emt 0:02:03]} 24. Rxc6 {
[%emt 0:03:44]} ({Less strong is} 24. Rxb7+ Kxb7 25. e4 dxe4 26. Qb4+ Ka8 27.
Qxe4 Kb7 28. Qb4+ Ka8 $18) 24... Nc5 {[%emt 0:01:14]} (24... Rxc6 $142 25. Qxc6
Qxb3 26. axb3 Rd8) 25. Rxb7+ {[%emt 0:02:19]} Nxb7 {[%emt 0:00:46]} 26. Rxc8+ {
[%emt 0:02:01]} Rxc8 {[%emt 0:00:09] KQ-KRN} 27. Qd7 {[%emt 0:00:43][%csl Yd5,
Yf7]} Nc5 {[%emt 0:01:24]} 28. Qxf7 {[%emt 0:03:35]} Nd3 {[%emt 0:00:00]} 29.
a4 {[%emt 0:00:32]} Nxe5 {[%emt 0:00:26]} 30. Qxd5 {[%emt 0:00:21]} Nc6 {
[%emt 0:00:34]} 31. Qd6+ {[%emt 0:00:57] Weighted Error Value: White=0.14 
(very precise) /Black=0.59} 1-0

[Event "44th Chess Olympiad Women 2022"]
[Site "Chennai"]
[Date "2022.08.06"]
[Round "8.16"]
[White "Terao, Juliana Sayumi"]
[Black "Milliet, Sophie"]
[Result "1/2-1/2"]
[WhiteElo "2223"]
[BlackElo "2396"]
[Annotator "TA"]
[PlyCount "64"]
[EventDate "2022.??.??"]
[TimeControl "60"]

{[%evp 16,64,-2,-6,10,15,47,34,36,25,39,48,52,39,97,12,20,6,13,-3,6,12,13,2,5,
8,8,6,0,0,21,4,4,3,44,11,83,11,14,-7,-8,-6,0,0,6,6,6,4,6,6,6]} 1. e4 {[%emt 0:
00:00]} c5 {[%emt 0:00:05]} 2. c3 {[%emt 0:00:07]} Nf6 {[%emt 0:00:09]} 3. e5 {
[%emt 0:00:08]} Nd5 {[%emt 0:00:04]} 4. Nf3 {[%emt 0:00:18]} d6 {[%emt 0:00:49]
} 5. d4 {[%emt 0:00:45]} cxd4 {[%emt 0:00:10]} 6. Qxd4 {[%emt 0:02:34]} e6 {
[%emt 0:00:10]} 7. Bc4 {[%emt 0:02:17]} Nc6 {[%emt 0:02:35]} 8. Qe4 {[%emt 0:
00:00]} dxe5 {[%emt 0:26:06]} 9. Nxe5 {[%emt 0:01:09]} Nf6 {[%emt 0:10:28] [#]
B22: Sicilian: 2 c3.} 10. Nxc6 $1 {[%emt 0:11:15]} Nxe4 {[%emt 0:00:13]} (10...
Qd7 11. Qe2) 11. Nxd8 {[%emt 0:00:08]} Kxd8 {[%emt 0:00:08] White is slightly
better.} 12. O-O {[%emt 0:07:00] [#]} Bd6 $146 {[%emt 0:00:35]} ({Predecessor:
} 12... Bd7 13. Rd1 Rc8 14. Bb5 Bd6 15. Na3 a6 16. Bxd7 Kxd7 17. Rd4 f5 18. Nc4
Rc5 {½-½ (53) Strikovic,A (2495)-Vera Gonzalez Quevedo,R (2500) Elgoibar 1994
}) 13. Re1 {[%emt 0:06:59]} Nc5 {[%emt 0:00:28]} 14. Nd2 {[%emt 0:04:08]} Ke7 {
[%emt 0:08:02]} (14... Bd7 $14) 15. Nf3 {[%emt 0:08:35]} (15. b4 $16 Na4 16.
Ne4) 15... Rd8 $11 {[%emt 0:02:19]} 16. Be3 {[%emt 0:07:20]} Bd7 {[%emt 0:00:
00][%cal Yc8d7,Yd7e6,Ye6b3]} 17. Rad1 {[%emt 0:02:18][%cal Yd1d6]} Rac8 {
[%emt 0:02:29]} 18. Bf1 {[%emt 0:02:08]} (18. b3 {is interesting.} f6 19. Ng5
Be5 20. f4) 18... a6 {[%emt 0:03:23]} 19. Nd4 {[%emt 0:03:21]} e5 {[%emt 0:00:
00]} 20. Nb3 {[%emt 0:03:53] And now Bxc5 would win.} Nxb3 {[%emt 0:01:46]} 21.
axb3 {[%emt 0:00:07]} Be6 {[%emt 0:02:31]} 22. b4 {[%emt 0:02:03]} f6 {[%emt 0:
08:05]} 23. g3 {[%emt 0:04:07]} Bb3 {[%emt 0:02:41]} 24. Ra1 {[%emt 0:00:00]}
Bd5 {[%emt 0:02:13]} 25. Bh3 {[%emt 0:12:48]} Rc6 {[%emt 0:00:07] [#]} (25...
Be6 $11 {remains equal.} 26. Bg2 Rd7) 26. Rad1 {[%emt 0:01:23]} (26. f4 $1 $16)
26... Bf3 {[%emt 0:00:36] The position is equal.} 27. Bg2 {[%emt 0:00:00]} Bxg2
{[%emt 0:03:06]} 28. Kxg2 {[%emt 0:00:06]} Ke6 {[%emt 0:03:23]} 29. f4 {
[%emt 0:02:04]} Bc7 {[%emt 0:02:04]} 30. Rxd8 {[%emt 0:01:06]} Bxd8 {[%emt 0:
00:02]} 31. fxe5 {[%emt 0:00:26]} fxe5 {[%emt 0:00:08]} 32. Kf3 {[%emt 0:00:35]
} Bf6 {[%emt 0:03:26] Weighted Error Value: White=0.19 (very precise) /Black=0.
13 (very precise)} 1/2-1/2